Cogmind - Beta 10.2 @@@ ROGUE MODE // 2021.08.08 @ 13:57:00 Player: Coronach Result: Self-destructed Performance ------------- Evolutions (2) 1000 Regions Visited (5) 1000 Robots Destroyed (76) 380 Value Destroyed (1701) 1701 Prototype IDs (14) 280 Alien Tech Used (0) 0 Bonus (97) 97 TOTAL SCORE: 4458 Bonus ------- High Alert Combat Kills 59 Follower Combat Kills 81 Friendly Fire -43 Cogmind --------- Core Integrity 435/550 Matter 232/300 Energy 200/200 System Corruption 6% Temperature Cool (249) Movement Treading (155) Location -8/Materials Parts ------- > --- POWER (2) -------- Micro Nuclear Core Micro Nuclear Core > --- PROPULSION (3) --- Light Treads Light Treads Advanced Treads > --- UTILITY (3) ------ Improved Heat Sink Large Storage Unit Transmission Jammer > --- WEAPON (3) ------- Heavy Ion Cannon Rocket Launcher > --- INVENTORY (10) --- Cooled Ion Engine Large Storage Unit Compact Matter Pod (0) Advanced Sensor Array Improved Signal Interpreter Makeshift Cloaking Device Medium Armor Plating Hardened Light Armor Plating Peak State ------------ > --- POWER ------------ Micro Nuclear Core Micro Nuclear Core > --- PROPULSION ------- Advanced Treads Advanced Treads Advanced Treads > --- UTILITY ---------- Improved Heat Sink Advanced Sensor Array Transmission Jammer > --- WEAPON ----------- Precision Beam Rifle Advanced Beam Rifle Advanced Beam Rifle > --- INVENTORY -------- Advanced Treads Improved Signal Interpreter Makeshift Cloaking Device Medium Armor Plating [Rating: 39] Favorites ----------- Power Micro Nuclear Core Engine Light Ion Engine Power Core Micro Nuclear Core Propulsion Advanced Treads Treads Advanced Treads Leg Aluminum Leg Wheel Wheel Hover Unit Gravmag System Flight Unit Flight Unit Utility Large Storage Unit Device Transmission Jammer Storage Large Storage Unit Processor Improved Terrain Scan Processor Protection Light Armor Plating Weapon Autogun Energy Gun Advanced Beam Rifle Energy Cannon Heavy Ion Cannon Ballistic Gun Autogun Launcher Rocket Launcher Special Melee Weapon Improved Datajack Build | -11 -10 -10 -10 -9 -8 ------- Run | Scr Mat Min Exi Min Mat Slots Evolved 4 | . . . . . 4 Power 1 | . . . . . 1 Propulsion 1 | . . . . . 1 Utility 1 | . . . . . 1 Weapon 1 | . . . . . 1 Parts Attached 75 | 4 8 7 2 2 52 Power 11 | . 2 1 1 . 7 Engine 4 | . . 1 1 . 2 Core 7 | . 2 . . . 5 Reactor . | . . . . . . Propulsion 16 | 2 1 4 1 . 8 Treads 11 | 2 1 . . . 8 Leg . | . . . . . . Wheel 2 | . . 2 . . . Hover 1 | . . . 1 . . Flight 2 | . . 2 . . . Utility 24 | 1 3 . . 2 18 Device 16 | . . . . 2 14 Storage 5 | 1 3 . . . 1 Processor 1 | . . . . . 1 Hackware . | . . . . . . Protection 2 | . . . . . 2 Artifact . | . . . . . . Weapon 24 | 1 2 2 . . 19 Energy Gun 9 | . . . . . 9 Energy Cannon 7 | . . . . . 7 Ballistic Gun 5 | 1 2 2 . . . Ballistic Cannon . | . . . . . . Launcher 2 | . . . . . 2 Special Weapon . | . . . . . . Impact Weapon . | . . . . . . Slashing Weapon . | . . . . . . Piercing Weapon . | . . . . . . Special Melee Weapon 1 | . . . . . 1 Unidentified Prototypes 5 | . . . . . 5 Parts Lost 11 | . . 6 . 2 3 Power 2 | . . 1 . 1 . Propulsion 3 | . . 3 . . . Utility 1 | . . . . . 1 Weapon 5 | . . 2 . 1 2 Highest Loss Streak 3 | . . 3 . 2 2 Average Slot Usage (%) 98 | . 100 98 100 89 98 Engine 5 | . . 11 14 12 2 Core 9 | . 13 2 . . 14 Treads 20 | . 28 16 . . 26 Wheel 3 | . . 7 14 10 . Hover 1 | . . . 4 14 . Flight 1 | . . 2 9 . . Device 8 | . . . . 5 22 Storage 18 | . 28 28 28 23 2 Energy Gun 5 | . . . . . 14 Energy Cannon 3 | . . . . . 9 Ballistic Gun 17 | . 27 28 28 24 . Naked Turns . | . . . . . . Heaviest Build 63 | 15 59 59 63 63 51 Greatest Support 66 | 40 40 40 10 11 66 Greatest Overweight (x) 18 | . 1 18 6 6 . Average Overweight (x) 2 | . . 3 5 3 . Largest Inventory Capacity 18 | 8 18 18 18 18 10 Average Capacity 13 | 6 16 18 18 15 5 Most Carried 18 | 6 17 18 18 18 10 Average Carried 11 | 2 12 16 16 15 4 Final Capacity 18 | 8 18 18 18 4 10 Final Carried 18 | 2 17 15 18 3 8 Class Distribution -------------------- 86% | Mutant 12% | Skirmisher Dominant Class ---------------- Mutant | -10/Materials Mutant | -10/Mines Mutant | -10/Exiles Mutant | -9/Mines Mutant | -8/Materials Resources | -11 -10 -10 -10 -9 -8 ----------- Run | Scr Mat Min Exi Min Mat Matter Collected 2199 | 249 788 366 198 58 540 Remotely . | . . . . . . Salvage Created 2636 | 85 519 302 182 . 1548 Parts 150 | 6 31 23 7 . 83 Haulers Intercepted 5 | . 2 . . . 3 Recyclers Shooed 4 | . 4 . . . . Parts Field Recycled . | . . . . . . Retrieved Matter . | . . . . . . Parts Self-Destructed . | . . . . . . Prevented . | . . . . . . Kills | -11 -10 -10 -10 -9 -8 ------- Run | Scr Mat Min Exi Min Mat Combat Hostiles Destroyed 55 | . 8 14 . . 33 Guns 40 | . 8 14 . . 18 Cannons 11 | . . . . . 11 AOE 3 | . . . . . 3 Classes Destroyed 11 | 2 4 1 . . 4 Worker 1 | . . 1 . . . Builder 3 | . . . . . 3 Tunneler 1 | 1 . . . . . Hauler 5 | . 2 . . . 3 Recycler 4 | 1 1 . . . 2 Operator 1 | . . . . . 1 Watcher 6 | . 3 . . . 3 Swarmer 28 | . 3 12 . . 13 Grunt 20 | . 5 2 . . 13 Duelist 1 | . . . . . 1 Sentry 6 | . . . . . 6 Best Kill Streak 5 | 2 3 4 . . 5 Combat Bots Only 5 | . 2 3 . . 5 Max Kills in Single Turn 2 | 1 1 2 . . 2 Gunslinging 1 | . . 1 . . 1 Exploded 2 | . . . . . 2 Melee . | . . . . . . Uniques/NPCs Destroyed . | . . . . . . Combat | -11 -10 -10 -10 -9 -8 -------- Run | Scr Mat Min Exi Min Mat Damage Taken 2910 | . 409 554 . 328 1619 Core 279 | . 39 63 . 62 115 Absorbed by Shields . | . . . . . . Core Remaining (%) 67 | 100 . . . 34 . Volleys Fired 269 | 3 51 41 22 6 146 Largest 3 | 2 2 2 2 2 3 Hottest 195 | 60 46 46 46 46 195 Shots Fired 488 | 6 102 82 44 12 242 Gun 394 | 6 102 82 44 12 148 Cannon 91 | . . . . . 91 Launcher 3 | . . . . . 3 Special . | . . . . . . Kinetic 243 | 3 102 82 44 12 . Thermal 239 | . . . . . 239 Explosive 3 | . . . . . 3 Electromagnetic 3 | 3 . . . . . Robot Hit Streak 27 | 2 20 10 11 3 27 Robot Miss Streak 4 | 2 3 3 1 3 4 Penetration Max . | . . . . . . Secondary Targets 6 | . 1 3 . . 2 Max Gunslinging Chain 1 | . 1 1 . . 1 Shots Hit Robots 335 | 2 67 50 35 6 175 Core Hits 124 | 2 21 19 12 3 67 Critical Hits 2 | . 1 1 . . . Critical Kills . | . . . . . . Critical Parts Destroyed 2 | . 1 1 . . . Melee Attacks . | . . . . . . Impact . | . . . . . . Slashing . | . . . . . . Piercing . | . . . . . . Sneak Attacks . | . . . . . . Combat Hostiles . | . . . . . . Follow-up Attacks . | . . . . . . Damage Inflicted 6363 | 25 1034 795 534 106 3869 Guns 4324 | 25 1034 795 534 106 1830 Cannons 1830 | . . . . . 1830 Explosions 174 | . . . . . 174 Melee . | . . . . . . Ramming 35 | . . . . . 35 Kinetic 2494 | 25 1034 795 534 106 . Thermal 3660 | . . . . . 3660 Explosive 174 | . . . . . 174 Electromagnetic . | . . . . . . Impact . | . . . . . . Slashing . | . . . . . . Piercing . | . . . . . . Highest Corruption 6 | . . . . . 6 Average Corruption 5 | . . . . . 5 Corruption Purged . | . . . . . . Effects 50 | . . . . . 50 Message Errors 12 | . . . . . 12 Matter Fused 9 | . . . . . 9 Heat Flow Errors 4 | . . . . . 4 Energy Discharges 5 | . . . . . 5 Data Loss (minor) 3 | . . . . . 3 Data Loss (major) 4 | . . . . . 4 Misfires 3 | . . . . . 3 Targeting Errors 9 | . . . . . 9 Weapon Failures 1 | . . . . . 1 Overload Shots . | . . . . . . Overflow Damage 76 | . . . . . 76 Projectiles 76 | . . . . . 76 Explosions . | . . . . . . Melee . | . . . . . . Knockbacks . | . . . . . . Impact . | . . . . . . Kinetic . | . . . . . . Secondary . | . . . . . . Self-Inflicted Damage 79 | . . . . . 79 Shots 2 | . . . . . 2 Rammed 5 | . . . . . 5 Targets Rammed 6 | . . . . . 6 Kicked . | . . . . . . Crushed 1 | . . . . . 1 Highest Temperature 369 | 20 78 34 12 204 369 Average Temperature 80 | 20 19 11 6 110 113 Received Heat Transfer 1088 | . 171 144 . 260 513 Effects 8 | . . . . . 8 Shutdowns 1 | . . . . . 1 Energy Bleed 4 | . . . . . 4 Interference 3 | . . . . . 3 Siege Activations . | . . . . . . Robots Corrupted . | . . . . . . Combat Hostiles . | . . . . . . Parts Fried . | . . . . . . Impact Corruptions . | . . . . . . Robots Melted 1 | . . . . . 1 Combat Hostiles 1 | . . . . . 1 Parts Melted 14 | . . . . . 14 Heat Transferred 6311 | . . . . . 6311 Parts Sabotaged . | . . . . . . Parts Stolen . | . . . . . . Parts Stripped . | . . . . . . Power Chain Reactions . | . . . . . . Missiles Intercepted . | . . . . . . Alert | -11 -10 -10 -10 -9 -8 ------- Run | Scr Mat Min Exi Min Mat Peak Influence 492 | 10 175 215 . . 492 Initial 6 | . 6 5 . . . Average 153 | 6 46 102 . . 270 Maximum Alert Level 2 | . . 1 . . 2 Low Security (%) 61 | 100 100 83 . 100 19 Level 1 34 | . . 16 . . 72 Level 2 3 | . . . . . 7 Level 3 . | . . . . . . Level 4 . | . . . . . . Level 5 . | . . . . . . High Security . | . . . . . . Max Security . | . . . . . . Squads Dispatched 7 | . . . . . 7 Investigation . | . . . . . . Extermination . | . . . . . . Reinforcement 4 | . . . . . 4 Assault . | . . . . . . Garrison 3 | . . . . . 3 Intercept . | . . . . . . Construction Impeded . | . . . . . . Haulers Reinforced . | . . . . . . Stealth | -11 -10 -10 -10 -9 -8 --------- Run | Scr Mat Min Exi Min Mat Distress Signals 2 | . . . . . 2 Communications Jammed 23 | . . . . . 23 Distress Signals 23 | . . . . . 23 Times Spotted 95 | . 14 18 . 14 49 Peak Tracking Total 11 | . 3 6 . 11 7 Tactical Retreats 7 | . 1 1 . 1 4 Traps | -11 -10 -10 -10 -9 -8 ------- Run | Scr Mat Min Exi Min Mat Traps Triggered 1 | . . . . . 1 Indirectly . | . . . . . . Trap Hack Attempts . | . . . . . . Triggered . | . . . . . . Disarmed . | . . . . . . Reprogrammed . | . . . . . . Reused . | . . . . . . Traps Extracted . | . . . . . . Installed . | . . . . . . Triggered . | . . . . . . Machines | -11 -10 -10 -10 -9 -8 ---------- Run | Scr Mat Min Exi Min Mat Machines Disabled 2 | . . 1 . . 1 Max in Single Turn 1 | . . . . . 1 Machines Sabotaged . | . . . . . . Garrisons Compromised . | . . . . . . Overloaded Fab Kills . | . . . . . . Fab Network Shutdowns . | . . . . . . Hacking | -11 -10 -10 -10 -9 -8 --------- Run | Scr Mat Min Exi Min Mat Machines Accessed 25 | . 9 . 4 . 12 Terminals 15 | . 8 . . . 7 Fabricators . | . . . . . . Repair Stations 2 | . 1 . . . 1 Recycling Units 2 | . . . . . 2 Scanalyzers 2 | . . . . . 2 Garrison Access . | . . . . . . Total Hacks 119 | . 25 . 49 . 45 Successful 96 | . 16 . 49 . 31 Failed 23 | . 9 . . . 14 Catastrophic 1 | . . . . . 1 Database Lockouts . | . . . . . . Manual 33 | . 14 . . . 19 Terminals 50 | . 23 . . . 27 Fabricators . | . . . . . . Repair Stations 4 | . 2 . . . 2 Recycling Units 4 | . . . . . 4 Scanalyzers 12 | . . . . . 12 Garrison Access . | . . . . . . Terminal Hacks 68 | . 9 . 49 . 10 Record 49 | . . . 49 . . Robot Analysis 1 | . . . . . 1 Prototype ID Bank 6 | . 4 . . . 2 Branch Access Points 1 | . 1 . . . . Terminal Index 2 | . 1 . . . 1 Alert Level 1 | . . . . . 1 Unreport Threat 1 | . . . . . 1 Locate Traps 3 | . 1 . . . 2 Hauler Manifests 1 | . 1 . . . . Registered Components 1 | . 1 . . . . Zone Layout 2 | . . . . . 2 Fabricator Hacks . | . . . . . . Repair Station Hacks 1 | . 1 . . . . Scan Component 1 | . 1 . . . . Recycling Unit Hacks . | . . . . . . Scanalyzer 11 | . . . . . 11 Insert Component 6 | . . . . . 6 Analyze 5 | . . . . . 5 Garrison Access Hacks . | . . . . . . Unauthorized Hacks 16 | . 6 . . . 10 Terminals 10 | . 5 . . . 5 Track 1 | . . . . . 1 Assimilate 5 | . 4 . . . 1 Botnet 2 | . . . . . 2 Operators 2 | . 1 . . . 1 Fabricators . | . . . . . . Repair Stations 2 | . 1 . . . 1 Mechanics 2 | . 1 . . . 1 Recycling Units 4 | . . . . . 4 Reject 2 | . . . . . 2 Recyclers 1 | . . . . . 1 Mask 1 | . . . . . 1 Scanalyzers . | . . . . . . Garrison Access . | . . . . . . Data Cores Recovered . | . . . . . . Used . | . . . . . . Hacking Detections 20 | . 8 . . . 12 Full Trace Events 1 | . 1 . . . . Feedback Events . | . . . . . . Feedback Blocked . | . . . . . . Robot Schematics Acquired . | . . . . . . Robots Built . | . . . . . . Matter . | . . . . . . Time . | . . . . . . Total Robot Build Rating . | . . . . . . Part Schematics Acquired 5 | . . . . . 5 Parts Built . | . . . . . . Matter . | . . . . . . Time . | . . . . . . Total Part Build Rating . | . . . . . . Parts Repaired . | . . . . . . Time . | . . . . . . Parts Recycled . | . . . . . . Recycled Matter . | . . . . . . Retrieved Matter . | . . . . . . Retrieved Components . | . . . . . . Parts Scanalyzed 5 | . . . . . 5 Part Schematics Acquired 5 | . . . . . 5 Parts Damaged . | . . . . . . Bothacking | -11 -10 -10 -10 -9 -8 ------------ Run | Scr Mat Min Exi Min Mat Used RIF Installer . | . . . . . . Robots Hacked . | . . . . . . Non-combat . | . . . . . . Combat . | . . . . . . Robot Hacks Applied . | . . . . . . Relay Couplers Released . | . . . . . . Robots Rewired . | . . . . . . Allies Hacked . | . . . . . . Hacks Repelled . | . . . . . . Allies | -11 -10 -10 -10 -9 -8 -------- Run | Scr Mat Min Exi Min Mat Total Allies 3 | . . 2 . . 1 Largest Group 2 | . . 2 2 . 1 Highest-Rated Group 45 | . . 45 45 . 10 Highest-Rated Ally 31 | . . 31 31 . 10 Total Orders . | . . . . . . Ally Attacks 21 | . . 21 . . . Total Damage 317 | . . 317 . . . Kills 5 | . . 5 . . . Allies Corrupted . | . . . . . . Allies Melted . | . . . . . . Intel | -11 -10 -10 -10 -9 -8 ------- Run | Scr Mat Min Exi Min Mat Robot Analysis Total 1 | . . . . . 1 Derelict Logs Recovered 2 | . . 2 . . . Drone Launches . | . . . . . . Drone Recoveries . | . . . . . . Exploration | -11 -10 -10 -10 -9 -8 ------------- Run | Scr Mat Min Exi Min Mat Turns Passed 5468 | 29 1354 1182 757 144 2002 Spaces Moved 2936 | 7 658 658 517 117 979 Core 39 | . . 1 . 27 11 Treads 1780 | 7 658 190 . . 925 Legs . | . . . . . . Wheels 1047 | . . 460 517 70 . Hover 63 | . . . . 20 43 Flight 7 | . . 7 . . . Fastest Speed 50 | 160 160 130 130 50 50 Average Speed 149 | 160 179 151 133 105 141 Slowest Speed 1160 | 160 180 1160 140 140 155 Overloaded Moves . | . . . . . . Propulsion Burnouts . | . . . . . . Robots Hopped . | . . . . . . Cave-ins Triggered . | . . . . . . Exploration Rate (%) 63 | 2 91 91 92 33 71 Regions Visited 5 Branch Regions 3 Pre-discovered Areas 4 | . . 2 1 1 . Known Exits Taken 1 | . 1 . . . . Unknown Exits Taken 4 | 1 . 1 1 1 . Scrap Searched 2 | . . 1 . 1 . Spaces Dug 1 | . . . . . 1 Terrain Destroyed 43 | . . . . . 43 Melee . | . . . . . . Projectile 23 | . . . . . 23 AOE 20 | . . . . . 20 Terrain Rammed . | . . . . . . Walls Destroyed . | . . . . . . Machines Disabled . | . . . . . . Actions | -11 -10 -10 -10 -9 -8 --------- Run | Scr Mat Min Exi Min Mat Total 3593 | 19 752 774 550 129 1369 Wait 206 | . 8 66 . . 132 Move 2931 | 6 657 657 516 116 979 Hop . | . . . . . . Pick Up 44 | 1 17 2 6 . 18 Fast Attach 34 | 1 3 3 1 . 26 Attach 19 | . . 4 . 1 14 Detach 9 | . 1 . . 1 7 Swap 22 | 3 5 . 1 1 12 Drop 53 | 5 10 1 4 4 29 Fire 269 | 3 51 41 22 6 146 Melee . | . . . . . . Ram . | . . . . . . Kick . | . . . . . . Crush 6 | . . . . . 6 Escape Stasis . | . . . . . . Rewire . | . . . . . . Trap . | . . . . . . Miscellaneous . | . . . . . . Route ------- -11/Scrapyard -10/Materials (discovered 5 exits: [*Mat x3] / *Min x2) -10/Mines (discovered 2 exits: [*Mat] / *Exi) -10/Exiles (discovered 2 exits: [*Min x2]) -9/Mines -8/Materials (discovered 2 exits: [*Fac x2]) History --------- Turn | Location | Event 11 | -11/Scrapyard | Discovered new exit (range 2) 30 | -11/Scrapyard | Entered Materials 167 | -10/Materials | Identified exit to Mines 303 | -10/Materials | Build established: Mutant 611 | -10/Materials | Discovered new exit (range 7) 1076 | -10/Materials | Discovered new exit (range 4) 1328 | -10/Materials | Discovered new exit (range 9) 1384 | -10/Materials | Entered Mines 1475 | -10/Mines | Discovered new exit (range 8) 1518 | -10/Mines | Found a damaged Exp. Sensor Array with a note attached 1522 | -10/Mines | Found Prototype Device 1938 | -10/Mines | Learned location of Storage (-9) 2409 | -10/Mines | Lost 3 parts (2n1w) 2520 | -10/Mines | Deemed a non-threat by the Exiles lab entrance 2520 | -10/Mines | Discovered new exit (range 5) 2566 | -10/Mines | Entered Exiles 2566 | -10/Exiles | Found Exiles lab destroyed 2566 | -10/Exiles | Accompanied by 2 allies 2590 | -10/Exiles | Discovered new exit (range 14) 2596 | -10/Exiles | Led the pair of lost Derelicts to a safe place 2720 | -10/Exiles | Learned location of Zion (-6) 3312 | -10/Exiles | Discovered new exit (range 10) 3323 | -10/Exiles | Entered Mines 3403 | -9/Mines | Assembled infested the area 3430 | -9/Mines | Core integrity fell below 50% 3464 | -9/Mines | Discovered new exit (range 7) 3467 | -9/Mines | Entered Materials 3467 | -8/Materials | Evolved 4 slots: Power x1, Propulsion x1, Utility x1, Weapon x1 4306 | -8/Materials | Build established: Skirmisher 4388 | -8/Materials | Garrison activated, responded to threat 4589 | -8/Materials | Discovered new exit (range 4) 5043 | -8/Materials | Build established: Mutant 5212 | -8/Materials | Discovered new exit (range 16) 5469 | -8/Materials | Self-destructed Last Messages --------------- 05427_ W-25 Informer distress signal jammed. 05434_ S-10 Pest destroyed. 05440_ System corrupted: Heat flow error (+109). 05440_ S-10 Pest destroyed. 05444_ Destroyed Lgt. Ion Engine. 05445_ W-25 Informer distress signal jammed. 05446_ Flight Unit melted. 05446_ S-10 Pest destroyed. 05447_ W-25 Informer distress signal jammed. 05452_ System corrupted: Hvy. Ion Cannon targeting data glitched. 05456_ K-01 Serf collects debris. 05459_ Hvy. Ion Cannon destroyed. 05461_ K-01 Serf collects debris. 05463_ Terminal disabled. 05463_ Imp. Heat Sink melted. 05463_ G-47 Trooper destroyed. 05463_ S-10 Pest destroyed. 05465_ O-16 Technician distress signal jammed. 05466_ K-01 Serf collects debris. 05467_ G-47 Trooper destroyed. Map ----- +----------------------------------------------------+ | ????????????????????????????# #????? | | ????????????????????????????# #????#""" | | ????????????????????????????# = ! #????#""" | | ????????????????????????????# #????#""" | | ????????????????????????????# #????# | | ????????????????????????????# #????####### | | ????????????????????????????# #??????????? | | ????????????????????????????######+####??????????? | | ?????????????????????????????????# #?????????????? | | ?????????????????????????????????# ############??? | | ?????????????????????????????????# ## #??? | | ?????????????????????????????????# ## [[ #??? | | ????????????????????????????????## ## [[ #??? | | ????????????????????????????????# # #??? | | ????????????????????????????????# # #??? | | ????????????????????????????????+ + """ """ #??? | | ????????????????????????????????# # """ """ #??? | | ???????????????????????????###### # """ """ #??? | | ?????????????????????####### ############## | | ?????????????????? #????# T | | ??????????????????????###### = #????# = | | ???????????????????????## [ #+#####?# """= | | ??????????????????#????# !#?# """"" | | ?????????????######+#### % "" #?# """"" | | ?????????????# =a% = "T #?# """"" | | ?????????????# k % %*@ "" ! #?# """ | | ?????????? ; [#= #?# | | ?????????# k*%= ##### # * ! =#?##"+##### | | ???????? + /[ ?????### ##########??## #???? | | ???????? # " ???????# #????????????# #???? | | ?????????# # ????????# ############## ##### | | ?????????# ??# ???????^+ o # ! | | ?????????????# ?????????# " | | ?????????????######?????????# # | | ????????????????????????????# + | | ????????????????????????????? ##############=! | | ????????????????????????????? ????????# #*# | | ?????????????????????????????%????????# [ #%##### | | ?????????????????????????????+????????# !#!#???? | | ??????????????????????????????????????# #%#???? | | ??????????????????????????????????????# #%#???? | | ??????????????????????????????????????# ==#???? | | ??????????????????????????????????????# # ##### | | ??????????????????????????????????????# + + | | ??????????????????????????????????????# # #### | | #####?????????????????????????????????###### #??# | | ??????????????????????????+ !#??# | | #####?????????????????????????????????######=#??# | | ??????????????????????????????????????######%#???? | | ??????????????????????????????????????#! #=#???? | +----------------------------------------------------+ Best States ------------- Heat Dissipation 45 Energy Generation 25 Energy Capacity 220 Matter Stores 300 Matter Capacity 300 Sight Range 16 Robot Scan Range 16 Terrain Scan Density 10 Jamming Range 8 Cloak Strength 3 Armor Coverage 225 Evasion (%) 53 Recoil Reduction 3 Item Schematics ----------------- Prc. Beam Rifle | -8/Materials | Scanalyzed Mak. Cloaking Device | -8/Materials | Scanalyzed Adv. Treads | -8/Materials | Scanalyzed Imp. Light Armor Plating | -8/Materials | Scanalyzed Med. Armor Plating | -8/Materials | Scanalyzed Robot Schematics ------------------ None Fabricated ------------ Nothing Alien Tech Used ----------------- None Achievements -------------- None Challenges ------------ None Game ------ Seed EnhancedMomentumMembrane Manual? 0 Play Time 01:25:49 Cumulative 126.9 hours Start 2021.08.08 @ 12:08:15 End 2021.08.08 @ 13:57:00 Sessions 1 Manual Loads 0 Difficulty Rogue Special Mode None Game No. 49 Rogue 46 Adventurer 0 Explorer 3 Win Type - Total 2 Types 2/0/0/0/0/0/0/0/0 Lore% 41 Gallery% 59 Achievement% 40 Wizard Run 0 Options --------- ASCII 0 Keyboard 0 Movement Numpad Keybinds 0 Fullscreen 1 Font 18/SmallcapsGlow Map View 76x50 Tactical HUD 1 Map Filters NONE Filters NONE Steam 1 RUN: 983b2d49-72b6-4bb0-85ba-90219c59f66b